[Event "Titled Tuesday Blitz December 7 2021"]
[White "Volkov, Maksim"]
[Black "Preotu, Razvan"]
[WhiteFideId "54123070"]
[BlackFideId "2613280"]
[WhiteElo "2081"]
[BlackElo "2407"]
[Result "0-1"]
[Round "06"]
[TimeControl "180+1"]
[Date "2021.12.07"]
[WhiteClock "0:00:03"]
[BlackClock "0:00:05"]

1. d4 {[%clk 0:03:00]}  Nf6 {[%clk 0:03:00]} 2. c4 {[%clk 0:03:01]}  g6 {[%clk 0:03:00]} 3. Nf3 {[%clk 0:03:00]}  Bg7 {[%clk 0:03:00]} 4. g3 {[%clk 0:03:01]}  c6 {[%clk 0:02:59]} 5. Nc3 {[%clk 0:02:58]}  d5 {[%clk 0:02:59]} 6. cxd5 {[%clk 0:02:58]}  cxd5 {[%clk 0:02:58]} 7. Bg2 {[%clk 0:02:58]}  O-O {[%clk 0:02:56]} 8. Ne5 {[%clk 0:02:58]}  Nc6 {[%clk 0:02:35]} 9. Nxc6 {[%clk 0:02:48]}  bxc6 {[%clk 0:02:36]} 10. O-O {[%clk 0:02:48]}  e5 {[%clk 0:02:26]} 11. dxe5 {[%clk 0:02:42]}  Ng4 {[%clk 0:02:26]} 12. Qa4 {[%clk 0:02:15]}  Qb6 {[%clk 0:01:54]} 13. b3 {[%clk 0:01:36]}  Bxe5 {[%clk 0:01:27]} 14. Bb2 {[%clk 0:01:36]}  Qa6 {[%clk 0:01:27]} 15. Qb4 {[%clk 0:01:24]}  Rb8 {[%clk 0:01:13]} 16. Qc5 {[%clk 0:01:24]}  Nf6 {[%clk 0:00:57]} 17. Rac1 {[%clk 0:01:14]}  Nd7 {[%clk 0:00:56]} 18. Qe7 {[%clk 0:01:04]}  Bf6 {[%clk 0:00:28]} 19. Qd6 {[%clk 0:01:03]}  Be5 {[%clk 0:00:28]} 20. Qe7 {[%clk 0:01:03]}  d4 {[%clk 0:00:24]} 21. Na4 {[%clk 0:00:57]}  Bf6 {[%clk 0:00:20]} 22. Qd6 {[%clk 0:00:54]}  Qxe2 {[%clk 0:00:18]} 23. Bxc6 {[%clk 0:00:48]}  Qe5 {[%clk 0:00:13]} 24. Qa3 {[%clk 0:00:40]}  Nb6 {[%clk 0:00:12]} 25. Rfe1 {[%clk 0:00:38]}  Qh5 {[%clk 0:00:11]} 26. Nc5 {[%clk 0:00:29]}  Bg4 {[%clk 0:00:08]} 27. Ne4 {[%clk 0:00:25]}  Bg7 {[%clk 0:00:07]} 28. Rc5 {[%clk 0:00:24]}  Bf5 {[%clk 0:00:03]} 29. Qxa7 {[%clk 0:00:20]}  Rfd8 {[%clk 0:00:02]} 30. Qe7 {[%clk 0:00:19]}  d3 {[%clk 0:00:02]} 31. Bxg7 {[%clk 0:00:18]}  Kxg7 {[%clk 0:00:03]} 32. Qf6+ {[%clk 0:00:18]}  Kg8 {[%clk 0:00:03]} 33. Ng5 {[%clk 0:00:18]}  d2 {[%clk 0:00:03]} 34. Qxf7+ {[%clk 0:00:18]}  Kh8 {[%clk 0:00:04]} 35. Qf6+ {[%clk 0:00:18]}  Kg8 {[%clk 0:00:04]} 36. Qf7+ {[%clk 0:00:11]}  Kh8 {[%clk 0:00:05]} 37. Qf6+ {[%clk 0:00:11]}  Kg8 {[%clk 0:00:05]} 38. Bd5+ {[%clk 0:00:05]}  Nxd5 {[%clk 0:00:05]} 39. Qf7+ {[%clk 0:00:04]}  Kh8 {[%clk 0:00:05]} 40. Rf1 {[%clk 0:00:02]}  d1=Q {[%clk 0:00:05]} 41. Rxd1 {[%clk 0:00:02]}  Qxd1+ {[%clk 0:00:06]} 42. Kg2 {[%clk 0:00:03]}  Ne3+ {[%clk 0:00:05]} 0-1


[Site "https://www.chess.com"]

[Event "Titled Tuesday Blitz December 7 2021"]
[White "Aradhya, Garg"]
[Black "Garagulya, Konstantin"]
[WhiteFideId "25006746"]
[BlackFideId "4128931"]
[WhiteElo "2176"]
[BlackElo "2329"]
[Result "1/2-1/2"]
[Round "07"]
[TimeControl "180+1"]
[Date "2021.12.07"]
[WhiteClock "0:00:06"]
[BlackClock "0:00:02"]

1. d4 {[%clk 0:03:00]}  Nf6 {[%clk 0:02:37]} 2. c4 {[%clk 0:03:01]}  e6 {[%clk 0:02:37]} 3. Nf3 {[%clk 0:03:01]}  d5 {[%clk 0:02:38]} 4. Nc3 {[%clk 0:03:00]}  Be7 {[%clk 0:02:38]} 5. Bf4 {[%clk 0:02:58]}  O-O {[%clk 0:02:39]} 6. e3 {[%clk 0:02:59]}  b6 {[%clk 0:02:38]} 7. Bd3 {[%clk 0:02:58]}  dxc4 {[%clk 0:02:38]} 8. Bxc4 {[%clk 0:02:58]}  Bb7 {[%clk 0:02:38]} 9. O-O {[%clk 0:02:58]}  Nbd7 {[%clk 0:02:38]} 10. d5 {[%clk 0:02:48]}  exd5 {[%clk 0:02:30]} 11. Nxd5 {[%clk 0:02:49]}  Nxd5 {[%clk 0:02:29]} 12. Bxd5 {[%clk 0:02:50]}  c6 {[%clk 0:02:23]} 13. Bc4 {[%clk 0:02:44]}  Nc5 {[%clk 0:02:23]} 14. Qc2 {[%clk 0:02:41]}  b5 {[%clk 0:02:18]} 15. Rfd1 {[%clk 0:02:41]}  Qb6 {[%clk 0:02:18]} 16. Be2 {[%clk 0:02:39]}  Ne6 {[%clk 0:02:13]} 17. Rd7 {[%clk 0:02:34]}  Nxf4 {[%clk 0:01:56]} 18. exf4 {[%clk 0:02:32]}  Bf6 {[%clk 0:01:55]} 19. Bd3 {[%clk 0:02:31]}  h6 {[%clk 0:01:42]} 20. a4 {[%clk 0:02:20]}  bxa4 {[%clk 0:01:22]} 21. Rxa4 {[%clk 0:02:12]}  Rfd8 {[%clk 0:01:20]} 22. Rxd8+ {[%clk 0:01:57]}  Rxd8 {[%clk 0:01:20]} 23. b3 {[%clk 0:01:57]}  c5 {[%clk 0:01:18]} 24. Bh7+ {[%clk 0:01:55]}  Kf8 {[%clk 0:01:16]} 25. Be4 {[%clk 0:01:54]}  Bxe4 {[%clk 0:01:12]} 26. Rxe4 {[%clk 0:01:52]}  Rb8 {[%clk 0:01:12]} 27. g3 {[%clk 0:01:49]}  Qxb3 {[%clk 0:01:07]} 28. Qxc5+ {[%clk 0:01:47]}  Kg8 {[%clk 0:01:07]} 29. Qxa7 {[%clk 0:01:42]}  Rd8 {[%clk 0:00:41]} 30. Kg2 {[%clk 0:01:36]}  Qd5 {[%clk 0:00:35]} 31. Qe3 {[%clk 0:01:32]}  Kf8 {[%clk 0:00:35]} 32. h4 {[%clk 0:01:30]}  g6 {[%clk 0:00:33]} 33. f5 {[%clk 0:01:23]}  gxf5 {[%clk 0:00:29]} 34. Rf4 {[%clk 0:00:51]}  Rc8 {[%clk 0:00:29]} 35. Qd2 {[%clk 0:00:37]}  Qe6 {[%clk 0:00:23]} 36. Qd3 {[%clk 0:00:26]}  Rc5 {[%clk 0:00:22]} 37. Qa3 {[%clk 0:00:19]}  Be7 {[%clk 0:00:21]} 38. Qa8+ {[%clk 0:00:19]}  Kg7 {[%clk 0:00:21]} 39. Qa1+ {[%clk 0:00:18]}  Bf6 {[%clk 0:00:21]} 40. Qa7 {[%clk 0:00:16]}  Rc3 {[%clk 0:00:20]} 41. Qb7 {[%clk 0:00:13]}  Rd3 {[%clk 0:00:19]} 42. Rb4 {[%clk 0:00:10]}  Rd1 {[%clk 0:00:17]} 43. Qb6 {[%clk 0:00:09]}  Qe2 {[%clk 0:00:15]} 44. Qb5 {[%clk 0:00:09]}  Qe6 {[%clk 0:00:14]} 45. Qc4 {[%clk 0:00:08]}  Qe7 {[%clk 0:00:12]} 46. Rb5 {[%clk 0:00:08]}  Qe6 {[%clk 0:00:11]} 47. Qxe6 {[%clk 0:00:07]}  fxe6 {[%clk 0:00:11]} 48. Rb7+ {[%clk 0:00:08]}  Kg6 {[%clk 0:00:11]} 49. Nh2 {[%clk 0:00:06]}  Rd6 {[%clk 0:00:10]} 50. Nf1 {[%clk 0:00:05]}  e5 {[%clk 0:00:09]} 51. Ne3 {[%clk 0:00:06]}  h5 {[%clk 0:00:09]} 52. Kf3 {[%clk 0:00:05]}  Re6 {[%clk 0:00:08]} 53. Rb5 {[%clk 0:00:05]}  e4+ {[%clk 0:00:07]} 54. Kf4 {[%clk 0:00:05]}  Bd4 {[%clk 0:00:07]} 55. Nxf5 {[%clk 0:00:04]}  Bxf2 {[%clk 0:00:07]} 56. Re5 {[%clk 0:00:04]}  Rxe5 {[%clk 0:00:05]} 57. Kxe5 {[%clk 0:00:05]}  e3 {[%clk 0:00:05]} 58. Nd4 {[%clk 0:00:05]}  Bxg3+ {[%clk 0:00:05]} 59. Ke4 {[%clk 0:00:05]}  Bxh4 {[%clk 0:00:05]} 60. Kxe3 {[%clk 0:00:05]}  Bg5+ {[%clk 0:00:05]} 61. Kf2 {[%clk 0:00:05]}  Bf6 {[%clk 0:00:06]} 62. Nf3 {[%clk 0:00:05]}  Kf5 {[%clk 0:00:07]} 63. Kg3 {[%clk 0:00:05]}  Be7 {[%clk 0:00:06]} 64. Kh3 {[%clk 0:00:05]}  Kf4 {[%clk 0:00:06]} 65. Ne1 {[%clk 0:00:05]}  Bf6 {[%clk 0:00:06]} 66. Ng2+ {[%clk 0:00:06]}  Kf3 {[%clk 0:00:06]} 67. Nh4+ {[%clk 0:00:06]}  Kf4 {[%clk 0:00:05]} 68. Ng2+ {[%clk 0:00:06]}  Kf3 {[%clk 0:00:05]} 69. Nh4+ {[%clk 0:00:06]}  Bxh4 {[%clk 0:00:06]} 70. Kxh4 {[%clk 0:00:06]}  Kf4 {[%clk 0:00:03]} 71. Kh3 {[%clk 0:00:06]}  h4 {[%clk 0:00:02]} 72. Kxh4 {[%clk 0:00:06]} 1/2-1/2


[Site "https://www.chess.com"]

[Event "Titled Tuesday Blitz December 7 2021"]
[White "Begunov, Konstantin"]
[Black "Odegov, Artem"]
[WhiteFideId "4118510"]
[BlackFideId "34183644"]
[WhiteElo "2262"]
[BlackElo "2274"]
[Result "1/2-1/2"]
[Round "07"]
[TimeControl "180+1"]
[Date "2021.12.07"]
[WhiteClock "0:00:11"]
[BlackClock "0:00:12"]

1. d4 {[%clk 0:03:00]}  Nf6 {[%clk 0:02:59]} 2. c4 {[%clk 0:03:00]}  c5 {[%clk 0:03:00]} 3. Nf3 {[%clk 0:03:00]}  cxd4 {[%clk 0:02:59]} 4. Nxd4 {[%clk 0:03:01]}  Nc6 {[%clk 0:03:00]} 5. Nc3 {[%clk 0:03:01]}  g6 {[%clk 0:03:00]} 6. g3 {[%clk 0:03:01]}  Bg7 {[%clk 0:03:01]} 7. Bg2 {[%clk 0:03:02]}  O-O {[%clk 0:03:01]} 8. O-O {[%clk 0:03:03]}  d6 {[%clk 0:03:02]} 9. Nxc6 {[%clk 0:03:02]}  bxc6 {[%clk 0:03:03]} 10. Bxc6 {[%clk 0:03:02]}  Bh3 {[%clk 0:03:03]} 11. Bxa8 {[%clk 0:03:02]}  Qxa8 {[%clk 0:03:04]} 12. f3 {[%clk 0:03:02]}  Bxf1 {[%clk 0:03:03]} 13. Kxf1 {[%clk 0:03:03]}  Qc6 {[%clk 0:02:59]} 14. Nd5 {[%clk 0:03:03]}  Nxd5 {[%clk 0:02:56]} 15. cxd5 {[%clk 0:03:02]}  Qb6 {[%clk 0:02:56]} 16. Qb3 {[%clk 0:02:00]}  Qc7 {[%clk 0:02:47]} 17. Rb1 {[%clk 0:01:25]}  Rb8 {[%clk 0:02:44]} 18. Qd3 {[%clk 0:01:18]}  Qa5 {[%clk 0:02:40]} 19. a3 {[%clk 0:01:14]}  Qa4 {[%clk 0:02:34]} 20. Bg5 {[%clk 0:00:53]}  Rb3 {[%clk 0:02:10]} 21. Qe4 {[%clk 0:00:42]}  Qxe4 {[%clk 0:02:01]} 22. fxe4 {[%clk 0:00:43]}  Rxb2 {[%clk 0:02:01]} 23. Rxb2 {[%clk 0:00:41]}  Bxb2 {[%clk 0:02:02]} 24. Bxe7 {[%clk 0:00:37]}  Bxa3 {[%clk 0:02:02]} 25. e5 {[%clk 0:00:38]}  f5 {[%clk 0:01:55]} 26. exd6 {[%clk 0:00:19]}  Kf7 {[%clk 0:01:54]} 27. Ke1 {[%clk 0:00:19]}  Ke8 {[%clk 0:01:51]} 28. Kd2 {[%clk 0:00:19]}  Kd7 {[%clk 0:01:51]} 29. Kd3 {[%clk 0:00:16]}  Bxd6 {[%clk 0:01:50]} 30. Bf6 {[%clk 0:00:16]}  Bc5 {[%clk 0:01:49]} 31. Be5 {[%clk 0:00:15]}  Bd6 {[%clk 0:01:41]} 32. Bd4 {[%clk 0:00:15]}  a5 {[%clk 0:01:41]} 33. e4 {[%clk 0:00:15]}  fxe4+ {[%clk 0:01:36]} 34. Kxe4 {[%clk 0:00:16]}  Bb4 {[%clk 0:01:36]} 35. Kd3 {[%clk 0:00:15]}  Kd6 {[%clk 0:01:36]} 36. Kc4 {[%clk 0:00:16]}  h5 {[%clk 0:01:29]} 37. h3 {[%clk 0:00:15]}  Be1 {[%clk 0:01:22]} 38. g4 {[%clk 0:00:16]}  hxg4 {[%clk 0:01:23]} 39. hxg4 {[%clk 0:00:16]}  Kd7 {[%clk 0:01:24]} 40. Bc5 {[%clk 0:00:15]}  Bd2 {[%clk 0:01:23]} 41. Kb5 {[%clk 0:00:15]}  Be1 {[%clk 0:01:22]} 42. Bf8 {[%clk 0:00:14]}  Bc3 {[%clk 0:01:21]} 43. Bc5 {[%clk 0:00:14]}  Kc7 {[%clk 0:01:17]} 44. Bf8 {[%clk 0:00:12]}  Bd2 {[%clk 0:01:14]} 45. Bc5 {[%clk 0:00:12]}  Be1 {[%clk 0:01:03]} 46. Bf8 {[%clk 0:00:12]}  Kd7 {[%clk 0:01:02]} 47. Bc5 {[%clk 0:00:12]}  Bc3 {[%clk 0:01:00]} 48. Bf8 {[%clk 0:00:12]}  Bd2 {[%clk 0:00:35]} 49. Bc5 {[%clk 0:00:12]}  Bc3 {[%clk 0:00:13]} 50. Bf8 {[%clk 0:00:11]}  Be1 {[%clk 0:00:12]} 51. Bc5 {[%clk 0:00:11]} 1/2-1/2


[Site "https://www.chess.com"]

[Event "Titled Tuesday Blitz December 7 2021"]
[White "Belyakov, Bogdan"]
[Black "Adly, Ahmed"]
[WhiteFideId "24104795"]
[BlackFideId "10601619"]
[WhiteElo "2407"]
[BlackElo "2656"]
[Result "0-1"]
[Round "07"]
[TimeControl "180+1"]
[Date "2021.12.07"]
[WhiteClock "0:01:14"]
[BlackClock "0:01:09"]

1. e4 {[%clk 0:03:00]}  c6 {[%clk 0:02:56]} 2. d4 {[%clk 0:03:00]}  d5 {[%clk 0:02:55]} 3. e5 {[%clk 0:03:01]}  Bf5 {[%clk 0:02:54]} 4. Nd2 {[%clk 0:03:01]}  e6 {[%clk 0:02:54]} 5. Nb3 {[%clk 0:03:01]}  a5 {[%clk 0:02:52]} 6. a4 {[%clk 0:02:58]}  Nd7 {[%clk 0:02:51]} 7. Nf3 {[%clk 0:02:57]}  h6 {[%clk 0:02:51]} 8. Be2 {[%clk 0:02:56]}  g5 {[%clk 0:02:48]} 9. O-O {[%clk 0:02:56]}  g4 {[%clk 0:02:46]} 10. Ne1 {[%clk 0:02:55]}  h5 {[%clk 0:02:44]} 11. Nd3 {[%clk 0:02:55]}  Ne7 {[%clk 0:02:42]} 12. Ndc5 {[%clk 0:02:52]}  Nxc5 {[%clk 0:02:38]} 13. Nxc5 {[%clk 0:02:53]}  Qc7 {[%clk 0:02:35]} 14. c4 {[%clk 0:02:42]}  dxc4 {[%clk 0:02:26]} 15. Bxc4 {[%clk 0:02:42]}  Ng6 {[%clk 0:02:21]} 16. Bd3 {[%clk 0:02:30]}  Bxd3 {[%clk 0:02:14]} 17. Nxd3 {[%clk 0:02:30]}  Rd8 {[%clk 0:02:14]} 18. Be3 {[%clk 0:02:29]}  Nh4 {[%clk 0:02:11]} 19. Qe2 {[%clk 0:02:26]}  Nf5 {[%clk 0:02:08]} 20. Rad1 {[%clk 0:02:06]}  Nxd4 {[%clk 0:01:59]} 21. Bxd4 {[%clk 0:02:07]}  Rxd4 {[%clk 0:01:59]} 22. b3 {[%clk 0:02:06]}  Be7 {[%clk 0:01:48]} 23. f3 {[%clk 0:02:02]}  Qb6 {[%clk 0:01:43]} 24. Kh1 {[%clk 0:01:59]}  Qxb3 {[%clk 0:01:41]} 25. f4 {[%clk 0:01:51]}  O-O {[%clk 0:01:35]} 26. Nf2 {[%clk 0:01:51]}  Rfd8 {[%clk 0:01:33]} 27. Rxd4 {[%clk 0:01:48]}  Rxd4 {[%clk 0:01:34]} 28. Nxg4 {[%clk 0:01:47]}  hxg4 {[%clk 0:01:33]} 29. Qxg4+ {[%clk 0:01:48]}  Kf8 {[%clk 0:01:32]} 30. Qh5 {[%clk 0:01:48]}  Ke8 {[%clk 0:01:32]} 31. f5 {[%clk 0:01:48]}  Qd3 {[%clk 0:01:29]} 32. Kg1 {[%clk 0:01:14]}  Rf4 {[%clk 0:01:09]} 0-1


[Site "https://www.chess.com"]

[Event "Titled Tuesday Blitz December 7 2021"]
[White "Bentivegna, Francesco"]
[Black "Vantika, Agrawal"]
[WhiteFideId "809055"]
[BlackFideId "25050389"]
[WhiteElo "2254"]
[BlackElo "1917"]
[Result "0-1"]
[Round "07"]
[TimeControl "180+1"]
[Date "2021.12.07"]
[WhiteClock "0:00:09"]
[BlackClock "0:00:23"]

1. e4 {[%clk 0:03:00]}  c6 {[%clk 0:02:58]} 2. d4 {[%clk 0:03:00]}  d5 {[%clk 0:02:58]} 3. e5 {[%clk 0:03:01]}  Bf5 {[%clk 0:02:58]} 4. Nd2 {[%clk 0:02:57]}  e6 {[%clk 0:02:57]} 5. Nb3 {[%clk 0:02:57]}  Nd7 {[%clk 0:02:54]} 6. Nf3 {[%clk 0:02:57]}  c5 {[%clk 0:02:45]} 7. dxc5 {[%clk 0:02:55]}  a6 {[%clk 0:02:39]} 8. Be3 {[%clk 0:02:53]}  Qc7 {[%clk 0:02:39]} 9. Nfd4 {[%clk 0:02:44]}  Bg6 {[%clk 0:02:38]} 10. f4 {[%clk 0:02:39]}  Nh6 {[%clk 0:02:33]} 11. Bd3 {[%clk 0:02:29]}  Nxc5 {[%clk 0:02:30]} 12. Nxc5 {[%clk 0:02:19]}  Bxc5 {[%clk 0:02:29]} 13. O-O {[%clk 0:02:14]}  Bxd3 {[%clk 0:02:17]} 14. Qxd3 {[%clk 0:02:13]}  Bxd4 {[%clk 0:02:15]} 15. Bxd4 {[%clk 0:02:11]}  Nf5 {[%clk 0:02:15]} 16. g4 {[%clk 0:01:57]}  Nxd4 {[%clk 0:02:13]} 17. Qxd4 {[%clk 0:01:58]}  h5 {[%clk 0:02:10]} 18. f5 {[%clk 0:01:53]}  hxg4 {[%clk 0:02:07]} 19. fxe6 {[%clk 0:01:53]}  fxe6 {[%clk 0:02:02]} 20. Rf2 {[%clk 0:00:43]}  O-O-O {[%clk 0:01:57]} 21. Re1 {[%clk 0:00:41]}  Rh4 {[%clk 0:01:51]} 22. Re3 {[%clk 0:00:34]}  Kb8 {[%clk 0:01:43]} 23. Rc3 {[%clk 0:00:34]}  Qe7 {[%clk 0:01:36]} 24. Rg3 {[%clk 0:00:26]}  Qg5 {[%clk 0:01:25]} 25. Qf4 {[%clk 0:00:25]}  Qg6 {[%clk 0:01:07]} 26. Qf7 {[%clk 0:00:15]}  Rh6 {[%clk 0:00:48]} 27. Qxg6 {[%clk 0:00:13]}  Rxg6 {[%clk 0:00:48]} 28. h3 {[%clk 0:00:13]}  Rg5 {[%clk 0:00:44]} 29. Rxg4 {[%clk 0:00:09]}  Rxe5 {[%clk 0:00:42]} 30. Rxg7 {[%clk 0:00:08]}  d4 {[%clk 0:00:39]} 31. Kg2 {[%clk 0:00:08]}  Rb5 {[%clk 0:00:38]} 32. b3 {[%clk 0:00:08]}  e5 {[%clk 0:00:39]} 33. Rg4 {[%clk 0:00:07]}  Rc5 {[%clk 0:00:33]} 34. Re2 {[%clk 0:00:07]}  Rdc8 {[%clk 0:00:33]} 35. Rg5 {[%clk 0:00:06]}  Rxc2 {[%clk 0:00:30]} 36. Rxe5 {[%clk 0:00:07]}  d3 {[%clk 0:00:30]} 37. Rf2 {[%clk 0:00:06]}  Rd8 {[%clk 0:00:18]} 38. Rxc2 {[%clk 0:00:03]}  dxc2 {[%clk 0:00:18]} 39. Rc5 {[%clk 0:00:04]}  Rc8 {[%clk 0:00:18]} 40. Rxc2 {[%clk 0:00:01]}  Rxc2+ {[%clk 0:00:18]} 41. Kg3 {[%clk 0:00:02]}  Rxa2 {[%clk 0:00:19]} 42. h4 {[%clk 0:00:03]}  Ra3 {[%clk 0:00:19]} 43. h5 {[%clk 0:00:04]}  Rxb3+ {[%clk 0:00:20]} 44. Kg4 {[%clk 0:00:05]}  Rb1 {[%clk 0:00:20]} 45. h6 {[%clk 0:00:05]}  Rh1 {[%clk 0:00:21]} 46. Kg5 {[%clk 0:00:06]}  Rxh6 {[%clk 0:00:22]} 47. Kxh6 {[%clk 0:00:07]}  a5 {[%clk 0:00:22]} 48. Kg5 {[%clk 0:00:08]}  a4 {[%clk 0:00:23]} 49. Kf4 {[%clk 0:00:09]}  a3 {[%clk 0:00:23]} 0-1


[Site "https://www.chess.com"]

[Event "Titled Tuesday Blitz December 7 2021"]
[White "Bloomer, Josh"]
[Black "Kosteniuk, Alexandra"]
[WhiteFideId "2020416"]
[BlackFideId "4128125"]
[WhiteElo "2436"]
[BlackElo "2475"]
[Result "0-1"]
[Round "07"]
[TimeControl "180+1"]
[Date "2021.12.07"]
[WhiteClock "0:00:07"]
[BlackClock "0:00:45"]

1. e4 {[%clk 0:03:00]}  c6 {[%clk 0:02:59]} 2. d4 {[%clk 0:03:00]}  d5 {[%clk 0:02:59]} 3. f3 {[%clk 0:03:01]}  e6 {[%clk 0:02:58]} 4. Nc3 {[%clk 0:03:01]}  Bb4 {[%clk 0:02:53]} 5. Bd3 {[%clk 0:02:54]}  Ne7 {[%clk 0:02:50]} 6. Ne2 {[%clk 0:02:49]}  c5 {[%clk 0:02:48]} 7. dxc5 {[%clk 0:02:35]}  Bxc5 {[%clk 0:02:42]} 8. exd5 {[%clk 0:02:15]}  exd5 {[%clk 0:02:41]} 9. Bg5 {[%clk 0:02:15]}  Be6 {[%clk 0:02:36]} 10. Qd2 {[%clk 0:02:14]}  Nbc6 {[%clk 0:02:34]} 11. O-O-O {[%clk 0:02:10]}  h6 {[%clk 0:02:34]} 12. Bh4 {[%clk 0:01:58]}  O-O {[%clk 0:02:31]} 13. Kb1 {[%clk 0:01:55]}  Qa5 {[%clk 0:02:25]} 14. Bxe7 {[%clk 0:01:39]}  Bxe7 {[%clk 0:02:18]} 15. a3 {[%clk 0:01:11]}  d4 {[%clk 0:02:12]} 16. Ne4 {[%clk 0:01:09]}  Qd5 {[%clk 0:02:10]} 17. b3 {[%clk 0:00:59]}  Bxa3 {[%clk 0:02:08]} 18. Nf4 {[%clk 0:00:58]}  Qd7 {[%clk 0:01:39]} 19. Nf6+ {[%clk 0:00:42]}  gxf6 {[%clk 0:01:35]} 20. Nh5 {[%clk 0:00:43]}  f5 {[%clk 0:01:24]} 21. Qxh6 {[%clk 0:00:42]}  f6 {[%clk 0:01:24]} 22. Qg6+ {[%clk 0:00:25]}  Kh8 {[%clk 0:01:23]} 23. Rde1 {[%clk 0:00:21]}  Ne5 {[%clk 0:01:13]} 24. Rxe5 {[%clk 0:00:07]}  fxe5 {[%clk 0:01:13]} 25. Nf6 {[%clk 0:00:05]}  Rxf6 {[%clk 0:01:11]} 26. Qxf6+ {[%clk 0:00:06]}  Kg8 {[%clk 0:01:11]} 27. Qg6+ {[%clk 0:00:05]}  Kf8 {[%clk 0:01:05]} 28. Re1 {[%clk 0:00:06]}  Bd6 {[%clk 0:00:56]} 29. Qh6+ {[%clk 0:00:05]}  Ke7 {[%clk 0:00:50]} 30. Bb5 {[%clk 0:00:06]}  Qxb5 {[%clk 0:00:47]} 31. Qg7+ {[%clk 0:00:07]}  Bf7 {[%clk 0:00:45]} 0-1


[Site "https://www.chess.com"]

[Event "Titled Tuesday Blitz December 7 2021"]
[White "Bologan, Victor"]
[Black "Pour Agha Bala, Amirreza"]
[WhiteFideId "13900048"]
[BlackFideId "12572896"]
[WhiteElo "2797"]
[BlackElo "2965"]
[Result "1/2-1/2"]
[Round "07"]
[TimeControl "180+1"]
[Date "2021.12.07"]
[WhiteClock "0:00:10"]
[BlackClock "0:00:19"]

1. e4 {[%clk 0:03:00]}  c5 {[%clk 0:02:59]} 2. Nf3 {[%clk 0:02:58]}  Nc6 {[%clk 0:02:59]} 3. Bb5 {[%clk 0:02:58]}  e6 {[%clk 0:02:57]} 4. Bxc6 {[%clk 0:02:57]}  bxc6 {[%clk 0:02:56]} 5. d3 {[%clk 0:02:57]}  d5 {[%clk 0:02:57]} 6. Qe2 {[%clk 0:02:56]}  Ne7 {[%clk 0:02:55]} 7. c4 {[%clk 0:02:54]}  Ng6 {[%clk 0:02:53]} 8. e5 {[%clk 0:02:54]}  Be7 {[%clk 0:02:52]} 9. g3 {[%clk 0:02:48]}  h5 {[%clk 0:02:50]} 10. h4 {[%clk 0:02:48]}  Bd7 {[%clk 0:02:47]} 11. Nc3 {[%clk 0:02:48]}  Qc7 {[%clk 0:02:45]} 12. b3 {[%clk 0:02:42]}  f6 {[%clk 0:02:43]} 13. exf6 {[%clk 0:02:36]}  gxf6 {[%clk 0:02:41]} 14. Bb2 {[%clk 0:02:31]}  O-O-O {[%clk 0:02:40]} 15. O-O-O {[%clk 0:02:31]}  Kb8 {[%clk 0:02:38]} 16. Kb1 {[%clk 0:02:31]}  Bc8 {[%clk 0:02:28]} 17. Na4 {[%clk 0:02:27]}  e5 {[%clk 0:02:25]} 18. Nd2 {[%clk 0:02:19]}  Bf5 {[%clk 0:02:22]} 19. Ka1 {[%clk 0:02:19]}  Rhe8 {[%clk 0:02:18]} 20. Rc1 {[%clk 0:02:07]}  Bg4 {[%clk 0:02:04]} 21. f3 {[%clk 0:02:05]}  Be6 {[%clk 0:02:02]} 22. Ba3 {[%clk 0:01:54]}  f5 {[%clk 0:01:53]} 23. Bxc5 {[%clk 0:01:48]}  Bxc5 {[%clk 0:01:46]} 24. Nxc5 {[%clk 0:01:48]}  Qb6 {[%clk 0:01:44]} 25. d4 {[%clk 0:01:24]}  dxc4 {[%clk 0:01:30]} 26. Nxc4 {[%clk 0:01:20]}  Bxc4 {[%clk 0:01:29]} 27. Rxc4 {[%clk 0:01:20]}  Ka8 {[%clk 0:01:22]} 28. Na4 {[%clk 0:01:03]}  Qb5 {[%clk 0:01:19]} 29. Rhc1 {[%clk 0:00:59]}  exd4 {[%clk 0:01:17]} 30. Qd2 {[%clk 0:00:56]}  Ne5 {[%clk 0:01:15]} 31. Rxd4 {[%clk 0:00:49]}  Rxd4 {[%clk 0:01:14]} 32. Qxd4 {[%clk 0:00:49]}  Nxf3 {[%clk 0:01:14]} 33. Qd7 {[%clk 0:00:48]}  Qe5+ {[%clk 0:01:12]} 34. Rc3 {[%clk 0:00:47]}  Qe1+ {[%clk 0:01:08]} 35. Kb2 {[%clk 0:00:46]}  Qd2+ {[%clk 0:01:02]} 36. Qxd2 {[%clk 0:00:43]}  Nxd2 {[%clk 0:01:03]} 37. Rxc6 {[%clk 0:00:41]}  Ne4 {[%clk 0:01:03]} 38. Rg6 {[%clk 0:00:40]}  Rd8 {[%clk 0:00:59]} 39. Nc3 {[%clk 0:00:28]}  Rd2+ {[%clk 0:00:57]} 40. Kc1 {[%clk 0:00:27]}  Rd3 {[%clk 0:00:48]} 41. Nxe4 {[%clk 0:00:25]}  fxe4 {[%clk 0:00:49]} 42. Kc2 {[%clk 0:00:21]}  Rf3 {[%clk 0:00:46]} 43. Rg5 {[%clk 0:00:20]}  Kb7 {[%clk 0:00:44]} 44. a4 {[%clk 0:00:20]}  Kc6 {[%clk 0:00:42]} 45. b4 {[%clk 0:00:20]}  Ra3 {[%clk 0:00:42]} 46. a5 {[%clk 0:00:16]}  Kd6 {[%clk 0:00:39]} 47. Kd2 {[%clk 0:00:16]}  Rd3+ {[%clk 0:00:38]} 48. Ke2 {[%clk 0:00:16]}  Kc6 {[%clk 0:00:37]} 49. Kf2 {[%clk 0:00:16]}  Rf3+ {[%clk 0:00:36]} 50. Kg2 {[%clk 0:00:17]}  Rb3 {[%clk 0:00:34]} 51. Rxh5 {[%clk 0:00:11]}  Rxb4 {[%clk 0:00:34]} 52. g4 {[%clk 0:00:10]}  Kd6 {[%clk 0:00:32]} 53. Rf5 {[%clk 0:00:08]}  e3 {[%clk 0:00:31]} 54. Rf6+ {[%clk 0:00:02]}  Ke5 {[%clk 0:00:28]} 55. Rf8 {[%clk 0:00:02]}  Rxg4+ {[%clk 0:00:27]} 56. Kf3 {[%clk 0:00:03]}  Rxh4 {[%clk 0:00:26]} 57. Kxe3 {[%clk 0:00:02]}  Ra4 {[%clk 0:00:27]} 58. Rh8 {[%clk 0:00:02]}  Kd5 {[%clk 0:00:23]} 59. Rh5+ {[%clk 0:00:02]}  Kc6 {[%clk 0:00:22]} 60. Kd3 {[%clk 0:00:02]}  Kb7 {[%clk 0:00:20]} 61. Kc3 {[%clk 0:00:02]}  Ka6 {[%clk 0:00:20]} 62. Kb3 {[%clk 0:00:02]}  Rg4 {[%clk 0:00:20]} 63. Ka3 {[%clk 0:00:02]}  Rf4 {[%clk 0:00:20]} 64. Kb3 {[%clk 0:00:02]}  Rf6 {[%clk 0:00:20]} 65. Kb4 {[%clk 0:00:03]}  Rf4+ {[%clk 0:00:20]} 66. Kb3 {[%clk 0:00:03]}  Re4 {[%clk 0:00:20]} 67. Ka3 {[%clk 0:00:03]}  Kb7 {[%clk 0:00:20]} 68. Kb3 {[%clk 0:00:03]}  a6 {[%clk 0:00:20]} 69. Ka3 {[%clk 0:00:03]}  Kc6 {[%clk 0:00:20]} 70. Kb3 {[%clk 0:00:04]}  Re3+ {[%clk 0:00:21]} 71. Kb4 {[%clk 0:00:04]}  Re4+ {[%clk 0:00:21]} 72. Kb3 {[%clk 0:00:04]}  Rg4 {[%clk 0:00:22]} 73. Ka3 {[%clk 0:00:05]}  Kb7 {[%clk 0:00:22]} 74. Kb3 {[%clk 0:00:05]}  Rd4 {[%clk 0:00:21]} 75. Ka3 {[%clk 0:00:05]}  Kc6 {[%clk 0:00:21]} 76. Kb3 {[%clk 0:00:05]}  Rd3+ {[%clk 0:00:21]} 77. Kc4 {[%clk 0:00:06]}  Rd6 {[%clk 0:00:20]} 78. Rc5+ {[%clk 0:00:06]}  Kb7 {[%clk 0:00:19]} 79. Rd5 {[%clk 0:00:07]}  Rh6 {[%clk 0:00:19]} 80. Rc5 {[%clk 0:00:07]}  Rh4+ {[%clk 0:00:19]} 81. Kb3 {[%clk 0:00:08]}  Ka7 {[%clk 0:00:18]} 82. Ka3 {[%clk 0:00:08]}  Kb7 {[%clk 0:00:19]} 83. Kb3 {[%clk 0:00:08]}  Rf4 {[%clk 0:00:18]} 84. Ka3 {[%clk 0:00:09]}  Re4 {[%clk 0:00:18]} 85. Kb3 {[%clk 0:00:09]}  Rf4 {[%clk 0:00:18]} 86. Ka3 {[%clk 0:00:10]}  Re4 {[%clk 0:00:19]} 87. Kb3 {[%clk 0:00:10]}  Rf4 {[%clk 0:00:19]} 1/2-1/2


[Site "https://www.chess.com"]